Cogmind - Beta 12 @@@ ROGUE MODE // 2023.05.14 @ 17:13:50 Player: Mr Goldstein Result: Destroyed by H-61 Shepherd with Heavy Assault Cannon Performance ------------- Evolutions (2) 1000 Regions Visited (4) 800 Robots Destroyed (0) 0 Value Destroyed (0) 0 Prototype IDs (0) 0 Alien Tech Used (0) 0 Bonus (470) 470 TOTAL SCORE: 2270 Bonus ------- Pacifist 470 Cogmind --------- Core Integrity 0/550 Matter 300/300 Energy 100/100 System Corruption 0% Temperature Cool (0) Movement Core (50) Location -8/Materials Parts ------- > --- POWER (1) -------- (None) > --- PROPULSION (2) --- (None) > --- UTILITY (6) ------ (None) > --- WEAPON (2) ------- (None) > --- INVENTORY (5) ---- (None) Peak State ------------ None Favorites ----------- Power None Propulsion None Utility None Weapon None Build | -11 -10 -10 -9 -8 ------- Run | Jun Mat Min Mat Mat Slots Evolved 4 | . . . 2 2 Power . | . . . . . Propulsion . | . . . . . Utility 4 | . . . 2 2 Weapon . | . . . . . Parts Attached . | . . . . . Power . | . . . . . Engine . | . . . . . Core . | . . . . . Reactor . | . . . . . Propulsion . | . . . . . Treads . | . . . . . Leg . | . . . . . Wheel . | . . . . . Hover . | . . . . . Flight . | . . . . . Utility . | . . . . . Device . | . . . . . Storage . | . . . . . Processor . | . . . . . Hackware . | . . . . . Protection . | . . . . . Artifact . | . . . . . Weapon . | . . . . . Energy Gun . | . . . . . Energy Cannon . | . . . . . Ballistic Gun . | . . . . . Ballistic Cannon . | . . . . . Launcher . | . . . . . Special Weapon . | . . . . . Impact Weapon . | . . . . . Slashing Weapon . | . . . . . Piercing Weapon . | . . . . . Special Melee Weapon . | . . . . . Unidentified Prototypes . | . . . . . Parts Lost . | . . . . . Power . | . . . . . Propulsion . | . . . . . Utility . | . . . . . Weapon . | . . . . . Highest Loss Streak . | . . . . . To Critical Strikes . | . . . . . Average Slot Usage (%) . | . . . . . Naked Turns 186 | . 25 37 52 72 Heaviest Build . | . . . . . Greatest Support 3 | 3 3 3 3 3 Greatest Overweight (x) . | . . . . . Average Overweight (x) . | . . . . . Largest Inventory Capacity 5 | 5 5 5 5 5 Average Capacity 5 | 5 5 5 5 5 Most Carried . | . . . . . Average Carried . | . . . . . Final Capacity 5 | 5 5 5 5 5 Final Carried . | . . . . . Class Distribution -------------------- 100% | Mutant Dominant Class ---------------- Mutant | -10/Materials Mutant | -10/Mines Mutant | -9/Materials Mutant | -8/Materials Resources | -11 -10 -10 -9 -8 ----------- Run | Jun Mat Min Mat Mat Matter Collected 175 | 147 . . . 28 Remotely . | . . . . . Salvage Created . | . . . . . Parts . | . . . . . Haulers Intercepted . | . . . . . Recyclers Shooed . | . . . . . Parts Field Recycled . | . . . . . Retrieved Matter . | . . . . . Parts Self-Destructed . | . . . . . Prevented . | . . . . . Kills | -11 -10 -10 -9 -8 ------- Run | Jun Mat Min Mat Mat Combat Hostiles Destroyed . | . . . . . Classes Destroyed . | . . . . . Best Kill Streak . | . . . . . Combat Bots Only . | . . . . . Max Kills in Single Turn . | . . . . . Gunslinging . | . . . . . Exploded . | . . . . . Melee . | . . . . . Uniques/NPCs Destroyed . | . . . . . Combat | -11 -10 -10 -9 -8 -------- Run | Jun Mat Min Mat Mat Damage Taken 677 | 1 . . 112 564 Core 677 | 1 . . 112 564 Absorbed by Shields . | . . . . . Core Remaining (%) 90 | 99 . 99 72 . Volleys Fired . | . . . . . Largest . | . . . . . Hottest . | . . . . . Shots Fired . | . . . . . Gun . | . . . . . Cannon . | . . . . . Launcher . | . . . . . Special . | . . . . . Kinetic . | . . . . . Thermal . | . . . . . Explosive . | . . . . . Electromagnetic . | . . . . . Robot Hit Streak . | . . . . . Robot Miss Streak . | . . . . . Penetration Max . | . . . . . Secondary Targets . | . . . . . Shots Hit Robots . | . . . . . Core Hits . | . . . . . Critical Kills . | . . . . . Critical Parts Destroyed . | . . . . . Critical Strikes . | . . . . . Melee Attacks . | . . . . . Impact . | . . . . . Slashing . | . . . . . Piercing . | . . . . . Sneak Attacks . | . . . . . Combat Hostiles . | . . . . . Follow-up Attacks . | . . . . . Damage Inflicted 43 | 3 . . 13 27 Guns . | . . . . . Cannons . | . . . . . Explosions . | . . . . . Melee . | . . . . . Ramming 43 | 3 . . 13 27 Kinetic . | . . . . . Thermal . | . . . . . Explosive . | . . . . . Electromagnetic . | . . . . . Impact . | . . . . . Slashing . | . . . . . Piercing . | . . . . . Highest Corruption . | . . . . . Average Corruption . | . . . . . Corruption Purged . | . . . . . Corruption Blocked . | . . . . . Overload Shots . | . . . . . Overflow Damage . | . . . . . Projectiles . | . . . . . Explosions . | . . . . . Melee . | . . . . . Knockbacks . | . . . . . Impact . | . . . . . Kinetic . | . . . . . Secondary . | . . . . . Self-Inflicted Damage 18 | 1 . . 6 11 Shots . | . . . . . Rammed 12 | 1 . . 3 8 Targets Rammed 12 | 1 . . 3 8 Kicked . | . . . . . Crushed . | . . . . . Highest Temperature . | . . . . . Average Temperature . | . . . . . Received Heat Transfer 99 | . . . 27 72 Siege Activations . | . . . . . Robots Corrupted . | . . . . . Combat Hostiles . | . . . . . Parts Fried . | . . . . . Impact Corruptions . | . . . . . Robots Melted . | . . . . . Combat Hostiles . | . . . . . Parts Melted . | . . . . . Heat Transferred . | . . . . . Parts Sabotaged . | . . . . . Parts Stolen . | . . . . . Parts Stripped . | . . . . . Power Chain Reactions . | . . . . . Missiles Intercepted . | . . . . . Alert | -11 -10 -10 -9 -8 ------- Run | Jun Mat Min Mat Mat Peak Influence 221 | . 30 11 63 221 Initial 26 | . . 11 3 26 Average 38 | . 16 11 33 73 Maximum Alert Level 1 | . . . . 1 Low Security (%) 97 | 100 100 100 100 93 Level 1 2 | . . . . 6 Level 2 . | . . . . . Level 3 . | . . . . . Level 4 . | . . . . . Level 5 . | . . . . . High Security . | . . . . . Max Security . | . . . . . Squads Dispatched 6 | . 1 . . 5 Investigation . | . . . . . Extermination . | . . . . . Reinforcement 6 | . 1 . . 5 Assault . | . . . . . Garrison . | . . . . . Intercept . | . . . . . Searches Triggered . | . . . . . Construction Impeded . | . . . . . Haulers Reinforced . | . . . . . Active Scanning Responses . | . . . . . Cargo Convoy Interrupts . | . . . . . Stealth | -11 -10 -10 -9 -8 --------- Run | Jun Mat Min Mat Mat Distress Signals 1 | . . . 1 . Communications Jammed . | . . . . . Distress Signals . | . . . . . Times Spotted 30 | . 2 . 6 22 Peak Tracking Total 13 | . 2 . 8 13 Tactical Retreats 2 | . . . . 2 Traps | -11 -10 -10 -9 -8 ------- Run | Jun Mat Min Mat Mat Traps Triggered . | . . . . . Indirectly . | . . . . . Trap Hack Attempts . | . . . . . Triggered . | . . . . . Disarmed . | . . . . . Reprogrammed . | . . . . . Reused . | . . . . . Traps Extracted . | . . . . . Installed . | . . . . . Triggered . | . . . . . Machines | -11 -10 -10 -9 -8 ---------- Run | Jun Mat Min Mat Mat Machines Disabled . | . . . . . Max in Single Turn . | . . . . . Machines Repaired . | . . . . . Machines Sabotaged . | . . . . . Overloaded Fab Kills . | . . . . . Hacking | -11 -10 -10 -9 -8 --------- Run | Jun Mat Min Mat Mat Machines Accessed . | . . . . . Terminals . | . . . . . Fabricators . | . . . . . Repair Stations . | . . . . . Recycling Units . | . . . . . Scanalyzers . | . . . . . Garrison Access . | . . . . . Total Hacks . | . . . . . Successful . | . . . . . Failed . | . . . . . Catastrophic . | . . . . . Database Lockouts . | . . . . . Manual . | . . . . . Terminals . | . . . . . Fabricators . | . . . . . Repair Stations . | . . . . . Recycling Units . | . . . . . Scanalyzers . | . . . . . Garrison Access . | . . . . . Terminal Hacks . | . . . . . Fabricator Hacks . | . . . . . Repair Station Hacks . | . . . . . Recycling Unit Hacks . | . . . . . Scanalyzer . | . . . . . Garrison Access Hacks . | . . . . . Unauthorized Hacks . | . . . . . Terminals . | . . . . . Fabricators . | . . . . . Repair Stations . | . . . . . Recycling Units . | . . . . . Scanalyzers . | . . . . . Garrison Access . | . . . . . Data Cores Recovered . | . . . . . Used . | . . . . . Hacking Detections . | . . . . . Full Trace Events . | . . . . . Feedback Events . | . . . . . Feedback Blocked . | . . . . . Robot Schematics Acquired . | . . . . . Robots Built . | . . . . . Authchips . | . . . . . Time . | . . . . . Total Robot Build Rating . | . . . . . Part Schematics Acquired . | . . . . . Parts Built . | . . . . . Authchips . | . . . . . Time . | . . . . . Total Part Build Rating . | . . . . . Parts Repaired . | . . . . . Time . | . . . . . Parts Recycled . | . . . . . Recycled Matter . | . . . . . Retrieved Matter . | . . . . . Retrieved Components . | . . . . . Parts Scanalyzed . | . . . . . Part Schematics Acquired . | . . . . . Parts Damaged . | . . . . . Bothacking | -11 -10 -10 -9 -8 ------------ Run | Jun Mat Min Mat Mat Used RIF Installer . | . . . . . Robots Hacked . | . . . . . Non-combat . | . . . . . Combat . | . . . . . Robot Hacks Applied . | . . . . . Relay Couplers Released . | . . . . . Fabnet Peak Effective % . | . . . . . Robots Rewired . | . . . . . Allies Hacked . | . . . . . Hacks Repelled . | . . . . . Allies | -11 -10 -10 -9 -8 -------- Run | Jun Mat Min Mat Mat Total Allies . | . . . . . Largest Group . | . . . . . Highest-Rated Group . | . . . . . Highest-Rated Ally . | . . . . . Total Orders . | . . . . . Ally Attacks . | . . . . . Total Damage . | . . . . . Kills . | . . . . . Allies Corrupted . | . . . . . Allies Melted . | . . . . . Intel | -11 -10 -10 -9 -8 ------- Run | Jun Mat Min Mat Mat Robot Analysis Total . | . . . . . Derelict Logs Recovered . | . . . . . Drone Launches . | . . . . . Drone Recoveries . | . . . . . Exploration | -11 -10 -10 -9 -8 ------------- Run | Jun Mat Min Mat Mat Turns Passed 201 | 15 25 37 52 72 Spaces Moved 372 | 24 49 74 98 127 Core 372 | 24 49 74 98 127 Treads . | . . . . . Legs . | . . . . . Wheels . | . . . . . Hover . | . . . . . Flight . | . . . . . Fastest Speed 50 | 50 50 50 50 50 Average Speed 50 | 50 50 50 50 50 Slowest Speed 50 | 50 50 50 50 50 Overloaded Moves . | . . . . . Propulsion Burnouts . | . . . . . Robots Hopped . | . . . . . Cave-ins Triggered . | . . . . . Exploration Rate (%) 17 | 2 16 29 17 21 Regions Visited 4 Branch Regions 1 Pre-discovered Areas . | . . . . . Known Exits Taken . | . . . . . Unknown Exits Taken 4 | 1 1 1 1 . Scrap Searched 1 | . . 1 . . Spaces Dug . | . . . . . Terrain Destroyed . | . . . . . Melee . | . . . . . Projectile . | . . . . . AOE . | . . . . . Terrain Rammed . | . . . . . Walls Destroyed . | . . . . . Machines Disabled . | . . . . . Actions | -11 -10 -10 -9 -8 --------- Run | Jun Mat Min Mat Mat Total 382 | 26 48 73 100 135 Wait 2 | 2 . . . . Move 368 | 23 48 73 97 127 Hop . | . . . . . Pick Up . | . . . . . Fast Attach . | . . . . . Attach . | . . . . . Detach . | . . . . . Swap . | . . . . . Drop . | . . . . . Fire . | . . . . . Melee . | . . . . . Ram 12 | 1 . . 3 8 Kick . | . . . . . Crush . | . . . . . Escape Stasis . | . . . . . Rewire . | . . . . . Trap . | . . . . . Miscellaneous . | . . . . . Route ------- -11/Junkyard -10/Materials -10/Mines -9/Materials -8/Materials (discovered 1 exit: [*Fac]) History --------- Turn | Location | Event 8 | -11/Junkyard | Discovered new exit (range 14) 16 | -11/Junkyard | Entered Materials 34 | -10/Materials | Discovered new exit (range 14) 41 | -10/Materials | Entered Mines 73 | -10/Mines | Discovered new exit (range 11) 78 | -10/Mines | Entered Materials 78 | -9/Materials | Evolved 2 slots: Utility x2 127 | -9/Materials | Discovered new exit (range 5) 130 | -9/Materials | Entered another Materials area 130 | -8/Materials | Evolved 2 slots: Utility x2 193 | -8/Materials | Discovered new exit (range 11) 196 | -8/Materials | Core integrity fell below 50% 201 | -8/Materials | Core integrity fell below 20% 202 | -8/Materials | Destroyed by H-61 Shepherd with Heavy Assault Cannon Last Messages --------------- 00176_ O-16 Technician: "IFF HANDSHAKE FAILED. SECURING TERMINAL." 00180_ T-07 Excavator is excavating. 00181_ ALERT: Hostiles spotted, dispatching reinforcements to Terminal M006. 00193_ ALERT: Suspicious intruders detected, dispatching Cutter reinforcements to area. 00193_ EXIT=FOUND 00194_ Slammed into G-47 Trooper. 00195_ Penetrated by Slug. 00195_ G-47 Trooper suffers critical hit (Blast). 00195_ G-47 Trooper destroyed. 00196_ Slammed into C-17 Slicer. 00197_ Knocked back. 00198_ Acquired 28 matter. 00198_ Slammed into C-17 Slicer. 00199_ Slammed into G-47 Trooper. 00200_ S-10 Pest system corrupted by crushing effect. 00200_ Slammed into G-47 Trooper. 00201_ S-10 Pest system terminally corrupted. 00201_ Slammed into G-47 Trooper. Map ----- +----------------------------------------------------+ | #??????????????????????????????????????????? | | +??????????????????????????????????????????? | | #??????????????????????????????????????????? | | ???????????????????????????????????????????? | | ???????????????????????????????????????????? | | ???????????????????????????????????????????? | | ???????????????????????????????????????????? | | ???????????????????????????????????????????? | | ???????????????????????????????????????????? | | ???????????????????????????????????????????? | | ???????????????????????????????????????????? | | ???????????????????????????????????????????? | | ###############????????????????????????????? | | # #????????????????????????????? | | # #????????????????????????????? | | # ^ #######??????????????????????? | | # #??????????????????????? | | # #??????????????????????? | | # #??????????????????????? | | #??????????????????????? | | ########### #??????????????????????? | | ] #?????????# #??????????????????????? | | ! #?????????# #???##+######??????????? | | ! #?????????#+## #???# #??????????? | | #????????????# #####c% H< #??????????? | | +??????+ =%%cs@g #??????????? | | ############??????#+#############??????????? | | ??????????????????????????????????????????? | | ??????????????????????????????????????????? | | ???????????????????????????????????????????? | | ???????????????????????????????????????????? | | ???????????????????????????????????????????? | | | | | | | | | | | | | | | | | | | | | | | | | | | | | | | | | | | | | +----------------------------------------------------+ Best States ------------- Heat Dissipation 31 Energy Generation 5 Energy Capacity 100 Matter Stores 300 Matter Capacity 300 Sight Range 16 Terrain Scan Density 10 Evasion (%) 50 Item Schematics ----------------- None Robot Schematics ------------------ None Fabricated ------------ Nothing Alien Tech Used ----------------- None Achievements -------------- None Challenges ------------ None Game ------ Seed FissionStealthFalx Manual? 0 Play Time 00:02:19 Cumulative 209.0 hours Start 2023.05.14 @ 17:12:12 End 2023.05.14 @ 17:13:50 Sessions 1 Manual Loads 0 Difficulty Rogue Special Mode None Game No. 605 Rogue 605 Adventurer 0 Explorer 0 Win Type - Total 9 Types 7/0/1/1/0/0/0/0/0 Lore% 81 Gallery% 80 Achievement% 71 Wizard Run 0 Options --------- ASCII 0 Keyboard 0 Movement Numpad Keybinds 0 Fullscreen 1 Font 16/SmallcapsGlow Map View 75x55 Tactical HUD 1 Map Filters NONE Filters NONE Steam 1 RUN: c756d76f-6610-4e60-aa71-0dda7dabcd7b